Cogmind - Beta 13 @@@ ROGUE MODE // 2024.07.15 @ 10:19:57 Player: ZergFTW Result: Destroyed by G-47 Trooper with Particle Gun Performance ------------- Evolutions (3) 1500 Regions Visited (5) 1000 Robots Destroyed (117) 585 Value Destroyed (2601) 2601 Prototype IDs (11) 220 Alien Tech Used (0) 0 Bonus (30) 30 TOTAL SCORE: 5936 Bonus ------- High Alert Combat Kills 30 Cogmind --------- Core Integrity 0/700 Matter 221/300 Energy 52/100 System Corruption 2% Temperature Cool (9) Movement Core (50) Location -7/Storage Parts ------- > --- POWER (1) -------- (None) > --- PROPULSION (3) --- (None) > --- UTILITY (7) ------ Advanced Weight Redist. System Experimental Optical Array Improved Signal Interpreter Hacking Suite > --- WEAPON (2) ------- Gravity Flail > --- INVENTORY (5) ---- Advanced Melee Analysis Suite Advanced ECM Suite Antimatter Cannon Gravity Flail Peak State ------------ > --- POWER ------------ Light Deuterium Engine > --- PROPULSION ------- VTOL Module VTOL Module Xenon Bombardment Thruster > --- UTILITY ---------- Medium Storage Unit Advanced Weight Redist. System Experimental Optical Array Improved Signal Interpreter Hacking Suite Hacking Suite Hacking Suite > --- WEAPON ----------- Gravity Flail Gravity Flail > --- INVENTORY -------- Improved Matter Compressor Improved Sensor Array Improved Sensor Array Advanced Melee Analysis Suite Advanced ECM Suite System Restoration Module Gauss Rifle Gauss Rifle Antimatter Cannon [Rating: 55] Favorites ----------- Power Cooled Ion Engine Engine Cooled Ion Engine Power Core Micro Nuclear Core Propulsion Improved Treads Treads Improved Treads Hover Unit Airjet Flight Unit VTOL Module Utility Huge Storage Unit Device Structural Scanner Storage Huge Storage Unit Processor Targeting Computer Hackware Hacking Suite Protection Hardened Light Armor Plating Weapon Assault Rifle Energy Gun EM Pulse Gun Ballistic Gun Assault Rifle Ballistic Cannon Antimatter Cannon Launcher EMP Blaster Impact Weapon Heavy Hammer Slashing Weapon Katana Build | -11 -10 -9 -8 -7 -7 ------- Run | Yrd Mat Mat Mat Fac Sto Slots Evolved 6 | . . 2 2 2 . Power . | . . . . . . Propulsion 1 | . . . 1 . . Utility 5 | . . 2 1 2 . Weapon . | . . . . . . Parts Attached 144 | 7 17 44 28 37 11 Power 19 | 1 3 6 4 5 . Engine 18 | 1 3 6 4 4 . Core 1 | . . . . 1 . Reactor . | . . . . . . Propulsion 31 | 2 6 10 4 9 . Treads 17 | 2 6 9 . . . Leg . | . . . . . . Wheel . | . . . . . . Hover 10 | . . . 4 6 . Flight 4 | . . 1 . 3 . Utility 51 | 2 4 13 12 17 3 Device 17 | 1 . . 4 10 2 Storage 7 | 1 3 . 1 2 . Processor 6 | . 1 2 1 1 1 Hackware 5 | . . . 2 3 . Protection 16 | . . 11 4 1 . Artifact . | . . . . . . Weapon 43 | 2 4 15 8 6 8 Energy Gun 2 | 1 1 . . . . Energy Cannon . | . . . . . . Ballistic Gun 18 | 1 3 11 3 . . Ballistic Cannon 4 | . . . . . 4 Launcher 1 | . . 1 . . . Special Weapon . | . . . . . . Impact Weapon 13 | . . 2 3 4 4 Slashing Weapon 5 | . . 1 2 2 . Piercing Weapon . | . . . . . . Special Melee Weapon . | . . . . . . Unidentified Prototypes 11 | . 1 2 . 5 3 Corrupted Parts 1 | . 1 . . . . System Corruption 1 | . 1 . . . . Parts Lost 29 | . 2 8 1 11 7 Power 3 | . 1 . . 1 1 Propulsion 9 | . . 1 . 5 3 Utility 12 | . . 5 1 3 3 Weapon 5 | . 1 2 . 2 . Highest Loss Streak 9 | . 1 2 1 9 4 To Critical Strikes . | . . . . . . Average Slot Usage (%) 98 | . 99 99 99 92 79 Engine 10 | . 13 10 9 4 2 Treads 18 | . 28 22 . . . Hover 3 | . . . 27 11 . Flight 1 | . . . . 10 13 Device 3 | . 2 . 13 15 10 Storage 10 | . 13 11 9 5 3 Processor 10 | . 11 10 2 7 14 Hackware 4 | . . . 17 21 22 Protection 12 | . . 21 1 1 . Energy Gun 1 | . 4 . . . . Ballistic Gun 15 | . 23 17 5 . . Impact Weapon 2 | . . 2 7 6 9 Slashing Weapon 2 | . . 2 5 3 . Naked Turns . | . . . . . . Heaviest Build 109 | 15 92 109 93 25 21 Greatest Support 46 | 40 46 46 24 24 23 Greatest Overweight (x) 4 | . 1 4 3 4 . Average Overweight (x) . | . . 2 . . . Largest Inventory Capacity 25 | 8 25 25 25 10 10 Average Capacity 19 | 7 16 25 10 8 7 Most Carried 25 | 2 19 25 24 10 10 Average Carried 17 | . 12 23 10 6 6 Final Capacity 25 | 8 25 25 10 10 5 Final Carried 25 | 2 19 25 10 10 4 Class Distribution -------------------- 70% | Mutant 15% | Scavenger-Mutant 4% | Hacker-Mutant 3% | Hacker-Sprinter 3% | Hacker-Scout Dominant Class ---------------- Mutant | -10/Materials Mutant | -9/Materials Scavenger-Mutant | -8/Materials Hacker-Sprinter | -7/Factory Hacker-Scout | -7/Storage Resources | -11 -10 -9 -8 -7 -7 ----------- Run | Yrd Mat Mat Mat Fac Sto Matter Collected 3406 | 276 994 1353 267 498 18 Remotely . | . . . . . . Salvage Created 4106 | 140 1164 2233 262 289 18 Parts 247 | 7 71 143 15 11 . Haulers Intercepted 9 | . 2 6 1 . . Recyclers Shooed . | . . . . . . Parts Field Recycled . | . . . . . . Retrieved Matter . | . . . . . . Parts Self-Destructed . | . . . . . . Prevented . | . . . . . . Kills | -11 -10 -9 -8 -7 -7 ------- Run | Yrd Mat Mat Mat Fac Sto Combat Hostiles Destroyed 64 | . 16 37 4 7 . Melee 8 | . . . 4 4 . Guns 52 | . 15 37 . . . AOE 1 | . 1 . . . . Classes Destroyed 12 | 2 6 4 . . . Worker 8 | . 3 3 . 2 . Builder 9 | . 4 2 . 3 . Tunneler 2 | 2 . . . . . Hauler 9 | . 2 6 1 . . Recycler 4 | 1 . 2 1 . . Mechanic 1 | . . 1 . . . Operator 6 | . 4 2 . . . Watcher 14 | . 3 5 3 2 1 Swarmer 17 | . . 6 4 7 . Grunt 36 | . 16 20 . . . Duelist 1 | . . 1 . . . Sentry 10 | . . 10 . . . Best Kill Streak 8 | 3 5 8 4 3 1 Combat Bots Only 7 | . 4 7 4 3 . Max Kills in Single Turn 2 | 2 1 2 1 1 1 Gunslinging . | . . . . . . Exploded 1 | . 1 . . . . Melee 1 | . . . 1 1 . Uniques/NPCs Destroyed . | . . . . . . Combat | -11 -10 -9 -8 -7 -7 -------- Run | Yrd Mat Mat Mat Fac Sto Hostile Shots Fired 521 | . 56 218 37 101 109 Missed 179 | . 19 54 14 33 59 Damage Taken 4595 | . 501 2127 379 957 631 Core 1030 | . 56 203 67 333 371 Absorbed by Shields . | . . . . . . Redirected to Shielding 32 | . . . . 32 . Regen/Repaired (Parts) 67 | . 23 1 23 . 20 Core Remaining (%) 78 | 100 77 49 87 . . Volleys Fired 268 | 2 106 158 . . 2 Largest 2 | 2 2 2 . . 1 Hottest 85 | 60 85 46 . . 40 Shots Fired 533 | 4 213 314 . . 2 Gun 531 | 4 213 314 . . . Cannon 2 | . . . . . 2 Launcher . | . . . . . . Special . | . . . . . . Kinetic 450 | 2 132 314 . . 2 Thermal 3 | . 3 . . . . Explosive . | . . . . . . Electromagnetic 80 | 2 78 . . . . Robot Hit Streak 16 | 2 16 16 . . . Robot Miss Streak 4 | 1 4 3 . . . Penetration Max . | . . . . . . Secondary Targets 4 | . . 4 . . . Max Gunslinging Chain 1 | . . 1 . . . Shots Hit Robots 409 | 2 136 237 13 18 3 Core Hits 159 | 3 56 90 7 3 . Critical Kills 2 | . . . 2 . . Critical Parts Destroyed 7 | . . 1 1 4 1 Critical Strikes 11 | . 1 1 4 4 1 Destroy 1 | . . 1 . . . Corrupt 1 | . 1 . . . . Smash 8 | . . . 3 4 1 Sever 1 | . . . 1 . . Melee Attacks 89 | . . 3 30 42 14 Impact 77 | . . 3 21 39 14 Slashing 12 | . . . 9 3 . Piercing . | . . . . . . Sneak Attacks 8 | . . . 3 5 . Combat Hostiles . | . . . . . . Follow-up Attacks 3 | . . . 1 1 1 Damage Inflicted 7648 | 109 2040 3452 627 1220 200 Guns 5387 | 38 1905 3444 . . . Cannons . | . . . . . . Explosions 206 | 71 135 . . . . Melee 2021 | . . . 601 1220 200 Ramming 34 | . . 8 26 . . Kinetic 4519 | 13 1062 3444 . . . Thermal 233 | 71 162 . . . . Explosive . | . . . . . . Electromagnetic 841 | 25 816 . . . . Impact 1710 | . . . 323 1187 200 Slashing 311 | . . . 278 33 . Piercing . | . . . . . . Highest Corruption 4 | . 4 . 4 . 2 Average Corruption 2 | . 2 . 3 . 1 Corruption Purged . | . . . . . . Corruption Blocked 5 | . . . . 5 . Effects 47 | . 33 . 13 . 1 Message Errors 15 | . 10 . 4 . 1 Matter Fused 13 | . 8 . 5 . . Heat Flow Errors 7 | . 3 . 4 . . Energy Discharges 4 | . 4 . . . . Data Loss (minor) 2 | . 2 . . . . Data Loss (major) 3 | . 3 . . . . Misfires 2 | . 2 . . . . Alerts 1 | . 1 . . . . Overload Shots . | . . . . . . Overflow Damage 992 | 13 . . 95 771 113 Projectiles . | . . . . . . Explosions 13 | 13 . . . . . Melee 979 | . . . 95 771 113 Knockbacks 8 | . . . 2 4 2 Impact 8 | . . . 2 4 2 Kinetic . | . . . . . . Secondary . | . . . . . . Self-Inflicted Damage 49 | . 36 . 13 . . Shots 1 | . 1 . . . . Rammed 2 | . . 1 1 . . Targets Rammed 2 | . . 1 1 . . Kicked . | . . . . . . Crushed . | . . . . . . Highest Temperature 267 | . 213 141 267 3 . Average Temperature 34 | . 35 20 109 2 . Received Heat Transfer 1530 | . 261 891 45 153 180 Siege Activations . | . . . . . . Robots Corrupted 1 | . 1 . . . . Combat Hostiles . | . . . . . . Parts Fried 21 | . 3 . 6 11 1 Impact Corruptions 30 | . . . 3 23 4 Robots Melted . | . . . . . . Combat Hostiles . | . . . . . . Parts Melted . | . . . . . . Heat Transferred 374 | 50 324 . . . . Parts Sabotaged . | . . . . . . Parts Stolen . | . . . . . . Parts Stripped . | . . . . . . Power Chain Reactions 5 | 1 4 . . . . Alert | -11 -10 -9 -8 -7 -7 ------- Run | Yrd Mat Mat Mat Fac Sto Peak Influence 568 | 15 348 568 263 396 328 Initial 180 | . 9 22 104 67 180 Average 256 | 4 151 322 142 239 232 Maximum Alert Level 2 | . 1 2 1 1 1 Low Security (%) 36 | 100 63 17 92 30 35 Level 1 45 | . 36 49 7 69 64 Level 2 18 | . . 33 . . . Level 3 . | . . . . . . Level 4 . | . . . . . . Level 5 . | . . . . . . High Security . | . . . . . . Max Security . | . . . . . . Squads Dispatched 16 | . 5 4 1 5 1 Investigation 8 | . 1 3 . 3 1 Extermination 2 | . . . . 2 . Reinforcement 6 | . 4 1 1 . . Assault . | . . . . . . Garrison . | . . . . . . Intercept . | . . . . . . Searches Triggered . | . . . . . . Construction Impeded . | . . . . . . Haulers Reinforced . | . . . . . . Active Scanning Responses . | . . . . . . Cargo Convoy Interrupts 1 | . . . . 1 . Stealth | -11 -10 -9 -8 -7 -7 --------- Run | Yrd Mat Mat Mat Fac Sto Distress Signals 11 | . 3 4 . 2 2 Communications Jammed . | . . . . . . Distress Signals . | . . . . . . Times Spotted 168 | . 35 53 16 44 20 Peak Tracking Total 13 | . 3 6 5 8 13 Tactical Retreats 22 | . 2 1 4 12 3 Traps | -11 -10 -9 -8 -7 -7 ------- Run | Yrd Mat Mat Mat Fac Sto Traps Triggered 13 | . 4 2 3 3 1 Indirectly . | . . . . . . Trap Hack Attempts . | . . . . . . Triggered . | . . . . . . Disarmed . | . . . . . . Reprogrammed . | . . . . . . Reused . | . . . . . . Traps Extracted . | . . . . . . Installed . | . . . . . . Triggered 1 | . . . . 1 . Machines | -11 -10 -9 -8 -7 -7 ---------- Run | Yrd Mat Mat Mat Fac Sto Machines Disabled 4 | . 3 1 . . . Max in Single Turn 1 | . 1 1 . . . Garrison Access 3 | . . . 1 1 1 Machines Repaired . | . . . . . . Machines Dismantled . | . . . . . . Machines Sabotaged . | . . . . . . Overloaded Fab Kills . | . . . . . . Hacking | -11 -10 -9 -8 -7 -7 --------- Run | Yrd Mat Mat Mat Fac Sto Machines Accessed 46 | . 8 14 6 12 6 Terminals 27 | . 5 10 4 6 2 Fabricators 2 | . . . . 2 . Repair Stations 4 | . 1 1 1 . 1 Recycling Units 8 | . 2 1 . 3 2 Scanalyzers 2 | . . 2 . . . Garrison Access 3 | . . . 1 1 1 Total Hacks 134 | . 30 38 20 33 13 Successful 82 | . 19 24 13 18 8 Failed 52 | . 11 14 7 15 5 Catastrophic 7 | . 2 3 . 1 1 Database Lockouts . | . . . . . . Manual 72 | . 17 24 16 14 1 Terminals 90 | . 17 29 16 24 4 Fabricators 5 | . . . . 5 . Repair Stations 18 | . 9 2 3 . 4 Recycling Units 10 | . 4 1 . 3 2 Scanalyzers 6 | . . 6 . . . Garrison Access 5 | . . . 1 1 3 Terminal Hacks 28 | . 4 9 7 6 2 Part Schematic 4 | . 1 . 2 1 . Robot Analysis 4 | . 2 1 1 . . Open Door 1 | . . . . . 1 Level Access Points 2 | . . 1 1 . . Branch Access Points 4 | . 1 1 1 1 . Terminal Index 3 | . . . 1 1 1 Fabricator Index 1 | . . . 1 . . Garrison Index 1 | . . . . 1 . Alert Level 3 | . . 3 . . . Unreport Threat 2 | . . 2 . . . Locate Traps 1 | . . 1 . . . Recall Extermination 1 | . . . . 1 . Hauler Manifests 1 | . . . . 1 . Fabricator Hacks 4 | . . . . 4 . Load Schematic 2 | . . . . 2 . Build 2 | . . . . 2 . Repair Station Hacks 14 | . 8 2 2 . 2 Scan Component 7 | . 4 1 1 . 1 Repair 7 | . 4 1 1 . 1 Recycling Unit Hacks 8 | . 2 1 . 3 2 Report Inventory 3 | . 1 1 . 1 . Retrieve Matter 1 | . 1 . . . . Retrieve Components 4 | . . . . 2 2 Scanalyzer 4 | . . 4 . . . Insert Component 2 | . . 2 . . . Analyze 2 | . . 2 . . . Garrison Access Hacks 3 | . . . 1 1 1 Seal Access 3 | . . . 1 1 1 Unauthorized Hacks 21 | . 5 8 3 4 1 Terminals 21 | . 5 8 3 4 1 Assimilate 1 | . . . . 1 . Botnet 20 | . 5 8 3 3 1 Fabricators . | . . . . . . Repair Stations . | . . . . . . Recycling Units . | . . . . . . Scanalyzers . | . . . . . . Garrison Access . | . . . . . . Data Cores Recovered 1 | . . 1 . . . Used 1 | . . 1 . . . Hacking Detections 38 | . 6 12 5 10 5 Full Trace Events 7 | . 1 2 . 3 1 Feedback Events . | . . . . . . Feedback Blocked . | . . . . . . Robot Schematics Acquired . | . . . . . . Robots Built . | . . . . . . Authchips . | . . . . . . Time . | . . . . . . Total Robot Build Rating . | . . . . . . Part Schematics Acquired 6 | . 1 2 2 1 . Parts Built 2 | . . . . 2 . Authchips . | . . . . . . Time 109 | . . . . 109 . Total Part Build Rating 6 | . . . . 6 . Parts Repaired 7 | . 4 1 1 . 1 Time 192 | . 128 26 19 . 19 Parts Recycled . | . . . . . . Recycled Matter . | . . . . . . Retrieved Matter . | . . . . . . Retrieved Components 10 | . . . . 5 5 Parts Scanalyzed 2 | . . 2 . . . Part Schematics Acquired 2 | . . 2 . . . Parts Damaged . | . . . . . . Bothacking | -11 -10 -9 -8 -7 -7 ------------ Run | Yrd Mat Mat Mat Fac Sto Used RIF Installer . | . . . . . . Robots Hacked . | . . . . . . Non-combat . | . . . . . . Combat . | . . . . . . Robot Hacks Applied . | . . . . . . Relay Couplers Released . | . . . . . . Fabnet Peak Effective % . | . . . . . . Robots Rewired . | . . . . . . Allies Hacked . | . . . . . . Hacks Repelled . | . . . . . . Allies | -11 -10 -9 -8 -7 -7 -------- Run | Yrd Mat Mat Mat Fac Sto Total Allies 1 | . . . . 1 . Largest Group 1 | . . . . 1 . Highest-Rated Group 26 | . . . . 26 . Highest-Rated Ally 26 | . . . . 26 . Total Orders . | . . . . . . Ally Attacks . | . . . . . . Total Damage . | . . . . . . Kills . | . . . . . . Allies Corrupted . | . . . . . . Allies Melted . | . . . . . . Intel | -11 -10 -9 -8 -7 -7 ------- Run | Yrd Mat Mat Mat Fac Sto Robot Analysis Total 4 | . 2 1 1 . . Derelict Logs Recovered . | . . . . . . Drone Launches . | . . . . . . Drone Recoveries . | . . . . . . Exploration | -11 -10 -9 -8 -7 -7 ------------- Run | Yrd Mat Mat Mat Fac Sto Turns Passed 10693 | 80 2428 6032 886 1071 196 Spaces Moved 5562 | 40 1086 1684 990 1492 270 Core 39 | 1 . . . 2 36 Treads 2809 | 39 1086 1684 . . . Legs . | . . . . . . Wheels . | . . . . . . Hover 1614 | . . . 990 624 . Flight 1100 | . . . . 866 234 Fastest Speed 30 | 50 160 320 52 30 30 Average Speed 155 | 157 174 320 53 45 34 Slowest Speed 480 | 160 240 480 232 250 50 Overloaded Moves . | . . . . . . Propulsion Burnouts . | . . . . . . Robots Hopped 5 | . . . . . 5 Cave-ins Triggered . | . . . . . . Exploration Rate (%) 54 | 4 98 98 60 26 42 Regions Visited 5 Branch Regions 1 Pre-discovered Areas . | . . . . . . Known Exits Taken 3 | . . 1 1 1 . Unknown Exits Taken 2 | 1 1 . . . . Scrap Searched . | . . . . . . Spaces Dug 26 | . . 3 8 9 6 Terrain Destroyed 46 | . 20 3 8 9 6 Melee 25 | . . 3 8 9 5 Projectile 1 | . . . . . 1 AOE 20 | . 20 . . . . Terrain Rammed . | . . . . . . Walls Destroyed . | . . . . . . Machines Disabled . | . . . . . . Actions | -11 -10 -9 -8 -7 -7 --------- Run | Yrd Mat Mat Mat Fac Sto Total 6945 | 50 1415 2012 1306 1810 352 Wait 669 | . 142 61 223 198 45 Move 5547 | 39 1085 1683 989 1491 260 Hop 5 | . . . . . 5 Pick Up 102 | 2 41 30 10 18 1 Fast Attach 42 | 7 8 8 7 9 3 Attach 44 | . . 13 10 15 6 Detach 7 | . . . . 1 6 Swap 59 | . 10 23 11 13 2 Drop 105 | . 23 32 27 13 10 Fire 268 | 2 106 158 . . 2 Melee 82 | . . 3 28 39 12 Ram 1 | . . . 1 . . Kick . | . . . . . . Crush 1 | . . 1 . . . Escape Stasis 13 | . . . . 13 . Rewire . | . . . . . . Trap . | . . . . . . Miscellaneous . | . . . . . . Route ------- -11/Scrapyard -10/Materials (discovered 5 exits: *Mat x3 / *Min x2) -9/Materials (discovered 4 exits: *Mat x3 / *Min) -8/Materials (discovered 3 exits: *Fac x3) -7/Factory (discovered 5 exits: [*Fac] / *Sto x2 / *Low x2) -7/Storage History --------- Turn | Location | Event 27 | -11/Scrapyard | Discovered new exit (range 16) 81 | -11/Scrapyard | Entered Materials 302 | -10/Materials | Build established: Mutant 401 | -10/Materials | Discovered new exit (range 16) 455 | -10/Materials | Identified exit to Mines 734 | -10/Materials | Discovered new exit (range 13) 1349 | -10/Materials | Discovered new exit (range 10) 1655 | -10/Materials | Discovered new exit (range 15) 1707 | -10/Materials | Repaired Hacking Suite 1746 | -10/Materials | Repaired Hacking Suite 1773 | -10/Materials | Repaired Structural Scanner 1800 | -10/Materials | Repaired Lrg. Storage Unit 2509 | -10/Materials | Entered another Materials area 2509 | -9/Materials | Evolved 2 slots: Utility x2 2829 | -9/Materials | Repaired Sensor Array 2929 | -9/Materials | Identified exit to Mines 3955 | -9/Materials | Identified exit to Materials 4606 | -9/Materials | Destroyed 7 combat bots 4673 | -9/Materials | Build established: Scavenger-Mutant 5424 | -9/Materials | Core integrity fell below 50% 5776 | -9/Materials | Build established: Mutant 8541 | -9/Materials | Entered another Materials area 8541 | -8/Materials | Evolved 2 slots: Propulsion x1, Utility x1 8614 | -8/Materials | Repaired Katana 8666 | -8/Materials | Identified exit to Factory 8842 | -8/Materials | Build established: Scavenger-Mutant 9427 | -8/Materials | Entered Factory 9427 | -7/Factory | Evolved 2 slots: Utility x2 9587 | -7/Factory | Discovered new exit (range 7) 9765 | -7/Factory | Fabricated Hacking Suite? 9792 | -7/Factory | Fabricated Hacking Suite? 9994 | -7/Factory | Lost 9 parts (1p5n2u1w) 10330 | -7/Factory | Cargo convoy interrupted 10342 | -7/Factory | Identified exit to Storage 10342 | -7/Factory | Identified exit to Lower Caves 10432 | -7/Factory | Found Prototype Processor 10432 | -7/Factory | Identified Exp. Terrain Scan Processor 10480 | -7/Factory | Build established: Hacker-Sprinter 10498 | -7/Factory | Entered Storage 10534 | -7/Storage | Repaired Adv. Weight Redist. System 10580 | -7/Storage | Core integrity fell below 50% 10614 | -7/Storage | Lost 3 parts (1p2n) 10677 | -7/Storage | Core integrity fell below 20% 10694 | -7/Storage | Destroyed by G-47 Trooper with Particle Gun Last Messages --------------- 10584_ Dropped Imp. Sensor Array. 10584_ K-01 Serf collects debris. 10607_ Connecting with Terminal... >>Trojan(Botnet) Trojan loaded successfully. Testing... Terminal linked with 0 systems. Awaiting botnet instructions. >>Index(Terminals) Found 16 terminals. Downloaded coordinate data. 10607_ ALERT: Suspicious activity at Terminal S003. Dispatching Investigation squad. 10642_ K-01 Serf collects debris. 10671_ VTOL Module destroyed. 10680_ AHX1XE9YY5OU,DR#RVLPHCGGQWF 10684_ Imp. Sensor Array destroyed. 10684_ Hacking Suite destroyed. 10687_ Triggered Heavy Explosive Trap. 10687_ An explosion rips through the floor. Map ----- +----------------------------------------------------+ | ?????????????????????????????????????????????????? | | ?????????????????????????????????????????????????? | | ?????????????????????????????????????????????????? | | ????????????????????????? ??????????????????????? | | ????????????????????????? ?????????????????????? | | ????????????????????????? #????????????????????? | | ????????????????????????? #????????????????????? | | ????????????????????????# #????????????????????? | | ???????????????????????? #????????????????????? | | ????????????????????????# #????????????????????? | | ????????????????????????# #????????????????????? | | ????????????????????????# #????????????????????? | | ????????????????????????# #????????????????????? | | ????????????????????????# #????????????????????? | | ????????????????????????# a#????????????????????? | | ????????????????????????+ #????????????????????? | | ????????????????????????# #????????????????????? | | ????????????????????????# #????????????????????? | | ???????????????????????## g #????????????????????? | | ???????????????????????#" #????????????????????? | | ???????????????????????#" #????????????????????? | | ???????????????????????#" #????????????????????? | | ???????????????????????#T #????????????????????? | | ???????????????????????#" #????????????????????? | | ???????????????????????#" #????????????????????? | | ???????????????????????#"@ #????????????????????? | | ???????????????????????## #????????????????????? | | ????????????????????????# #????????????????????? | | ????????????????????????# #????####????????????? | | ????????????????????????# #????# ????????????? | | ????????????????????????# #????# ????????????? | | ????????????????????????# #????# ????????????? | | ????????????????????????# #???## ????????????? | | ????????????????????????# #???"" #???????????? | | ????????????????????????# ##??"" #???????????? | | ??????????????????????### #??"T #???????????? | | ??????????????????????# #???" #???????????? | | ??????????????????????# #???" #??????###??? | | ??????????????????????# r #???# #?????## #### | | ??????????????????????## #???# #?????# | | ??????????????????????# #??# #?????# """ | | ??????????????????????## g ##??# #?????# """ | | ?????????????????##???##Yg gg#???# #?????#"" """ | | ????????????????## ####" #???# #?????#"" | | ????????????????# # #???# !!#######"T """ | | ????????????????# ## g##???# ![# #"" """ | | ????????????????# """ ## #????# ![+ #"" """ | | ????????????????# T" ## Y ##???# !# " | | ????????????????# """ ## ?? # #####/# | | ????????????????#] ## ########## # | +----------------------------------------------------+ Best States ------------- Heat Dissipation 34 Energy Generation 15 Energy Capacity 280 Matter Stores 300 Matter Capacity 300 Sight Range 23 Robot Scan Range 15 Terrain Scan Density 10 ECM Strength 2 Additional Mass Support 9 Armor Coverage 525 Propulsion Shielding 33 Evasion (%) 64 Targeting Accuracy 6 Recoil Reduction 2 Offensive Hacking 30 Item Schematics ----------------- Med. Matter Pod | -10/Materials | Hacked Hacking Suite | -9/Materials | Scanalyzed Med. Storage Unit | -9/Materials | Scanalyzed Cesium-ion Thruster | -8/Materials | Hacked System Shield | -8/Materials | Hacked Imp. Sensor Array | -7/Factory | Hacked Robot Schematics ------------------ None Fabricated ------------ Hacking Suite | x1 | -7/Factory Hacking Suite | x1 | -7/Factory Alien Tech Used ----------------- None Achievements -------------- Shopping List Challenges ------------ None Game ------ Seed LargeScatterScrap Manual? 0 Play Time 01:55:31 Cumulative 82.1 hours Start 2024.07.14 @ 21:24:26 End 2024.07.15 @ 10:19:57 Sessions 3 Manual Loads 0 Difficulty Rogue Special Mode None Game No. 53 Rogue 52 Adventurer 1 Explorer 0 Win Type - Total 0 Types 0/0/0/0/0/0/0/0/0 Lore% 35 Gallery% 39 Achievement% 37 Wizard Run 0 Options --------- Layout 1 ASCII 0 Keyboard 0 Movement Mouse Keybinds 0 Fullscreen 1 Font 24/Proggy Map View 76x35 Zoom Use 0% Tactical HUD 1 Map Filters NONE Filters NONE Steam 1 RUN: 90cbca09-d809-41eb-93f2-1f5f4ab4cc84